Cogmind - Beta 9.3 @@@ ROGUE MODE // 2020.01.05 @ 12:42:47 Player: Khauvinkh Result: Core destroyed Performance ------------- Evolutions (0) 0 Regions Visited (1) 200 Robots Destroyed (14) 70 Value Destroyed (193) 193 Prototype IDs (0) 0 Alien Tech Used (0) 0 Bonus (0) 0 TOTAL SCORE: 463 Bonus ------- None Cogmind --------- Core Integrity 0/250 Matter 153/300 Energy 45/100 System Corruption 0% Temperature Cool (504) Movement Hovering (60) Location -10/Materials Parts ------- > --- POWER (1) -------- Ion Engine > --- PROPULSION (2) --- Improved Hover Unit > --- UTILITY (2) ------ Weapon Shielding > --- WEAPON (2) ------- (None) > --- INVENTORY (4) ---- Improved Hover Unit Peak State ------------ > --- POWER ------------ Ion Engine > --- PROPULSION ------- Improved Hover Unit Improved Hover Unit > --- UTILITY ---------- Weapon Shielding > --- WEAPON ----------- Beam Rifle Beam Rifle > --- INVENTORY -------- Improved Hover Unit Improved Hover Unit [Rating: 10] Favorites ----------- Power Light Ion Engine Engine Light Ion Engine Propulsion Wheel Wheel Wheel Hover Unit Improved Hover Unit Utility Weapon Shielding Device Sensor Array Protection Weapon Shielding Weapon Small Laser Energy Gun Small Laser Ballistic Gun Light Assault Rifle Launcher Grenade Launcher Build | -11 -10 ------- Run | Scr Mat Slots Evolved . | . . Power . | . . Propulsion . | . . Utility . | . . Weapon . | . . Parts Attached 17 | 5 12 Power 2 | 1 1 Engine 2 | 1 1 Core . | . . Reactor . | . . Propulsion 5 | 2 3 Treads . | . . Leg . | . . Wheel 2 | 2 . Hover 3 | . 3 Flight . | . . Utility 4 | . 4 Device 1 | . 1 Storage . | . . Processor . | . . Hackware . | . . Protection 3 | . 3 Artifact . | . . Weapon 6 | 2 4 Energy Gun 4 | 2 2 Energy Cannon . | . . Ballistic Gun 1 | . 1 Ballistic Cannon . | . . Launcher 1 | . 1 Special Weapon . | . . Impact Weapon . | . . Slashing Weapon . | . . Piercing Weapon . | . . Special Melee Weapon . | . . Unidentified Prototypes . | . . Parts Lost 11 | . 11 Power 1 | . 1 Propulsion 4 | . 4 Utility 2 | . 2 Weapon 4 | . 4 Highest Loss Streak 7 | . 7 Average Slot Usage (%) 75 | . 75 Engine 13 | . 13 Wheel 18 | . 18 Hover 3 | . 3 Device 1 | . 1 Protection 13 | . 13 Energy Gun 19 | . 19 Ballistic Gun 4 | . 4 Launcher 1 | . 1 Naked Turns . | . . Heaviest Build 12 | 6 12 Greatest Support 26 | 26 26 Greatest Overweight (x) 2 | . 2 Average Overweight (x) . | . . Largest Inventory Capacity 4 | 4 4 Average Capacity 4 | 4 4 Most Carried 4 | 4 4 Average Carried 2 | 1 2 Final Capacity 4 | 4 4 Final Carried 1 | 1 1 Class Distribution -------------------- 100% | Mutant Dominant Class ---------------- Mutant | -10/Materials Resources | -11 -10 ----------- Run | Scr Mat Matter Collected 254 | 231 23 Remotely . | . . Salvage Created 146 | . 146 Parts 20 | . 20 Haulers Intercepted . | . . Recyclers Shooed 1 | . 1 Parts Field Recycled . | . . Retrieved Matter . | . . Parts Self-Destructed . | . . Prevented . | . . Kills | -11 -10 ------- Run | Scr Mat Combat Hostiles Destroyed 6 | . 6 Guns 2 | . 2 AOE 4 | . 4 Classes Destroyed 6 | . 6 Worker 3 | . 3 Builder 1 | . 1 Recycler 1 | . 1 Watcher 3 | . 3 Swarmer 4 | . 4 Grunt 2 | . 2 Best Kill Streak 12 | . 12 Combat Bots Only 5 | . 5 Max Kills in Single Turn 3 | . 3 Gunslinging . | . . Exploded 2 | . 2 Melee . | . . Uniques/NPCs Destroyed . | . . Combat | -11 -10 -------- Run | Scr Mat Damage Taken 990 | . 990 Core 276 | . 276 Absorbed by Shields . | . . Core Remaining (%) 100 | 100 . Volleys Fired 41 | 7 34 Largest 2 | 2 2 Hottest 112 | 90 112 Shots Fired 70 | 14 56 Gun 63 | 14 49 Cannon . | . . Launcher 7 | . 7 Special . | . . Kinetic 16 | . 16 Thermal 47 | 14 33 Explosive 7 | . 7 Electromagnetic . | . . Robot Hit Streak 5 | 3 5 Robot Miss Streak 5 | 1 5 Penetration Max . | . . Secondary Targets 1 | . 1 Max Gunslinging Chain 1 | . 1 Shots Hit Robots 36 | 9 27 Core Hits 29 | 1 28 Critical Hits . | . . Critical Kills . | . . Critical Parts Destroyed . | . . Melee Attacks . | . . Impact . | . . Slashing . | . . Piercing . | . . Sneak Attacks . | . . Combat Hostiles . | . . Follow-up Attacks . | . . Damage Inflicted 1027 | 59 968 Guns 301 | 59 242 Cannons . | . . Explosions 726 | . 726 Melee . | . . Ramming . | . . Kinetic 63 | . 63 Thermal 238 | 59 179 Explosive 667 | . 667 Electromagnetic 59 | . 59 Impact . | . . Slashing . | . . Piercing . | . . Highest Corruption . | . . Average Corruption . | . . Corruption Purged . | . . Overload Shots . | . . Overflow Damage 12 | . 12 Projectiles . | . . Explosions 12 | . 12 Melee . | . . Knockbacks . | . . Impact . | . . Kinetic . | . . Secondary . | . . Self-Inflicted Damage 153 | . 153 Shots 5 | . 5 Rammed . | . . Targets Rammed . | . . Kicked . | . . Crushed . | . . Highest Temperature 522 | 90 522 Average Temperature 124 | 43 152 Received Heat Transfer 231 | . 231 Effects 7 | . 7 Interference 1 | . 1 Matter Decay 3 | . 3 Short Circuit 1 | . 1 Damage (minor) 1 | . 1 Damage (core) 1 | . 1 Siege Activations . | . . Robots Corrupted . | . . Combat Hostiles . | . . Parts Fried . | . . Impact Corruptions . | . . Robots Melted . | . . Combat Hostiles . | . . Parts Melted . | . . Heat Transferred 607 | 149 458 Parts Sabotaged . | . . Parts Stolen . | . . Parts Stripped . | . . Power Chain Reactions . | . . Missiles Intercepted . | . . Alert | -11 -10 ------- Run | Scr Mat Peak Influence 138 | . 138 Average Influence 38 | . 44 Maximum Alert Level . | . . Low Security (%) 100 | 100 100 Level 1 . | . . Level 2 . | . . Level 3 . | . . Level 4 . | . . Level 5 . | . . High Security . | . . Max Security . | . . Squads Dispatched 3 | . 3 Investigation 3 | . 3 Extermination . | . . Reinforcement . | . . Assault . | . . Garrison . | . . Intercept . | . . Construction Impeded . | . . Haulers Reinforced . | . . Stealth | -11 -10 --------- Run | Scr Mat Distress Signals 1 | . 1 Communications Jammed . | . . Distress Signals . | . . Times Spotted 16 | . 16 Peak Tracking Total 8 | . 8 Tactical Retreats . | . . Traps | -11 -10 ------- Run | Scr Mat Traps Triggered 6 | . 6 Indirectly 6 | . 6 Trap Hack Attempts . | . . Triggered . | . . Disarmed . | . . Reprogrammed . | . . Reused . | . . Traps Extracted . | . . Installed . | . . Triggered . | . . Machines | -11 -10 ---------- Run | Scr Mat Machines Disabled 1 | . 1 Max in Single Turn 1 | . 1 Machines Sabotaged . | . . Garrisons Compromised . | . . Overloaded Fab Kills . | . . Fab Network Shutdowns . | . . Hacking | -11 -10 --------- Run | Scr Mat Machines Accessed 3 | . 3 Terminals 3 | . 3 Fabricators . | . . Repair Stations . | . . Recycling Units . | . . Scanalyzers . | . . Garrison Access . | . . Total Hacks 10 | . 10 Successful 5 | . 5 Failed 5 | . 5 Catastrophic . | . . Database Lockouts . | . . Manual 5 | . 5 Terminals 10 | . 10 Fabricators . | . . Repair Stations . | . . Recycling Units . | . . Scanalyzers . | . . Garrison Access . | . . Terminal Hacks 5 | . 5 Record 2 | . 2 Alert Level 1 | . 1 Hauler Manifests 1 | . 1 Registered Components 1 | . 1 Fabricator Hacks . | . . Repair Station Hacks . | . . Recycling Unit Hacks . | . . Scanalyzer . | . . Garrison Access Hacks . | . . Unauthorized Hacks . | . . Terminals . | . . Fabricators . | . . Repair Stations . | . . Recycling Units . | . . Scanalyzers . | . . Garrison Access . | . . Data Cores Recovered . | . . Used . | . . Hacking Detections 3 | . 3 Full Trace Events 2 | . 2 Feedback Events . | . . Feedback Blocked . | . . Robot Schematics Acquired . | . . Robots Built . | . . Matter . | . . Time . | . . Total Robot Build Rating . | . . Part Schematics Acquired . | . . Parts Built . | . . Matter . | . . Time . | . . Total Part Build Rating . | . . Parts Repaired . | . . Time . | . . Parts Recycled . | . . Recycled Matter . | . . Retrieved Matter . | . . Retrieved Components . | . . Parts Scanalyzed . | . . Part Schematics Acquired . | . . Parts Damaged . | . . Bothacking | -11 -10 ------------ Run | Scr Mat Used RIF Installer . | . . Robots Hacked . | . . Non-combat . | . . Combat . | . . Robot Hacks Applied . | . . Relay Couplers Released . | . . Robots Rewired . | . . Allies Hacked . | . . Hacks Repelled . | . . Allies | -11 -10 -------- Run | Scr Mat Total Allies . | . . Largest Group . | . . Highest-Rated Group . | . . Highest-Rated Ally . | . . Total Orders . | . . Ally Attacks . | . . Total Damage . | . . Kills . | . . Allies Corrupted . | . . Allies Melted . | . . Intel | -11 -10 ------- Run | Scr Mat Robot Analysis Total . | . . Derelict Logs Recovered . | . . Drone Launches . | . . Drone Recoveries . | . . Exploration | -11 -10 ------------- Run | Scr Mat Turns Passed 415 | 62 353 Spaces Moved 291 | 37 254 Core 40 | 8 32 Treads . | . . Legs . | . . Wheels 227 | 29 198 Hover 24 | . 24 Flight . | . . Fastest Speed 50 | 50 56 Average Speed 92 | 81 94 Slowest Speed 150 | 90 150 Overloaded Moves . | . . Propulsion Burnouts . | . . Robots Hopped . | . . Cave-ins Triggered . | . . Exploration Rate (%) 22 | 5 40 Regions Visited 1 Branch Regions . Pre-discovered Areas . | . . Known Exits Taken . | . . Unknown Exits Taken 1 | 1 . Scrap Searched . | . . Spaces Dug . | . . Terrain Destroyed 42 | . 42 Melee . | . . Projectile . | . . AOE 42 | . 42 Actions | -11 -10 --------- Run | Scr Mat Total 371 | 54 317 Wait . | . . Move 290 | 36 254 Hop . | . . Pick Up 18 | 6 12 Fast Attach 1 | . 1 Attach 15 | 5 10 Detach 1 | . 1 Swap 1 | . 1 Drop 4 | . 4 Fire 41 | 7 34 Melee . | . . Ram . | . . Kick . | . . Crush . | . . Escape Stasis . | . . Rewire . | . . Trap . | . . Miscellaneous . | . . Route ------- -11/Scrapyard -10/Materials History --------- Turn | Location | Event 8 | -11/Scrapyard | Discovered new exit (range 15) 63 | -11/Scrapyard | Entered Materials 288 | -10/Materials | Core integrity fell below 50% 314 | -10/Materials | Build established: Mutant 321 | -10/Materials | Lost 7 parts (1p2n2u2w) 413 | -10/Materials | Core integrity fell below 20% 417 | -10/Materials | Core destroyed Last Messages --------------- Overheating: Matter decay (-22). U-05 Engineer lays Concrete. Imp. Hover Unit destroyed. U-05 Engineer lays Concrete. Beam Rifle destroyed. Overheating: Short circuit. Broken Ion Engine permanently disabled. Imp. Hover Unit destroyed. U-05 Engineer lays Concrete. Overheating: Weapon Shielding damaged (-18). U-05 Engineer lays Concrete. K-01 Serf collects debris. U-05 Engineer lays Concrete. Overheating: System interference. Beam Rifle temporarily disabled. U-05 Engineer lays Concrete. Overheating: Matter decay (-33). U-05 Engineer lays Concrete. Beam Rifle destroyed. Overheating: Core damaged (-37). Map ----- +----------------------------------------------------+ | ??????????????????????????????????????????? | | ??????????????????????????????????????????? | | ??????????????????????????????????????????? | | ??????????????????????????????????????????? | | ??????????????????????????????????????????? | | ??????????????????????????????????????????? | | ????????????????????????? #???????????????? | | ????????????????????????? #?##"#??????????? | | ?????????????????########/## ?????????? | | ?????????????????# ^ ?????????? | | ?????????????????# !! = ????????? | | ?????????????##### %k % ????????? | | ?????????????# *% #????????? | | ?????????????# = #?????????? | | ?????????????# [ uu / #?????????? | | ?????????????# [ // #?????????? | | ?????????????#// #?????????? | | ?????????????#// ##"???????? | | ????????????###### !!! ?????? | | ?????????? # !!! ?????? | | ??????????"" """ # !! ?????? | | ???? ?Y??""" """ # s############# ???????? | | ????? """ """ # #####?????????######## | | ???? # # ##????????# # | | ??????! # # # #????????# # | | ?????????# #####@ ## ########### # | | ??????#### g # # | | ?????# g + # | | ?????# #### g % # # | | ??????????## ####g ## ######## ## # | | ??????????##!#### g #####??????# ## # | | ??????????# *???## ###????????# ######### | | ??????????##?????# #??????????# ######### | | ????????????????## ??????????# | | ????????????????## ##?????????# | | ????????????????## #??????????# | | ????????????????## %#??????????# ####### | | ????????????????## ??????????# # | | ?????????????????# #??????????# # "" | | | ?????????????????# #??????????# + "T | | ????????????????? ??????????# # "" | | ????????????????? # """ ### # | | ?????????????????? + " ^ ####### | | ?????????????????? ?# ####+######## | | ??????????????????????# ??# # | | ??????????????????????###?????# """""# | | ??????????????????????????????# """""# | | ??????????????????????????????# """""# "" | | ??????????????????????????????# """""# "" | | ??????????????????????????????# """""# "" | +----------------------------------------------------+ Best States ------------- Heat Dissipation 25 Energy Generation 10 Energy Capacity 250 Matter Stores 281 Matter Capacity 300 Sight Range 16 Robot Scan Range 10 Terrain Scan Density 10 Weapon Shielding 33 Evasion (%) 53 Item Schematics ----------------- None Robot Schematics ------------------ None Fabricated ------------ Nothing Alien Tech Used ----------------- None Achievements -------------- Party Time Challenges ------------ None Game ------ Seed MissileAntigravGravjet Manual? 0 Play Time 00:09:04 Cumulative 3.3 hours Start 2020.01.05 @ 12:29:38 End 2020.01.05 @ 12:42:47 Sessions 1 Manual Loads 0 Difficulty Rogue Special Mode None Game No. 7 Rogue 7 Adventurer 0 Explorer 0 Win Type - Total 0 Types 0/0/0/0/0/0/0 Lore% 2 Gallery% 9 Achievement% 7 Wizard Run 0 Options --------- ASCII 0 Keyboard 0 Movement Arrows Keybinds 0 Fullscreen 1 Font 18/SmallcapsGlow Map View 76x50 Tactical HUD 0 Map Filters NONE Filters NONE Steam 1 RUN: 7b4429e0-88b3-4190-ac3f-2ff251205674